{"text_format":"2","workbook":"xlsx","n_sheets":1,"sheets":["CoStar 032725"],"not_rendered":{"charts":0,"images":0,"macros":0,"external_links":0,"defined_names":0,"comments":0,"pivot_tables":0},"unopened":[],"bounds":{"document_bytes":16777216,"sheet_cells":100000,"run_cost":"one","rows_first":2000,"rows_last":500,"rows_between":2000,"halvings":0,"cell_chars":16384,"cell_head_chars":4096},"cells_cut":0,"cells_raw":0,"read":"whole","date_system":"1900"}

{"sheet":"CoStar 032725","index":0,"n_rows":90,"n_cols":32,"rows_kept":90,"cut":false,"hidden":false,"merged":[]}
["Property Address","Property City","Property State","Property Type","Building SF","Star Rating","Sale Price","Price Per SF","Sale Date","Sale Status","Actual Cap Rate","Estimated NOI","Sale Type","Buyer (True) Company","Buyer (True) Type","Buyer (True) Secondary Type","Buyer (True) Origin","Seller (True) Company","Seller (True) Type","Seller (True) Secondary Type","Seller (True) Origin","Hold Period","Secondary Type","Building Class","Year Built","Land Area AC","Land Area SF","Number Of Floors","Zoning","Location Type","Property County","Property Zip Code"]
["825 E 18th St","Antioch","CA","Health Care",30974,"3 Star",8750000,282.49489999999997,"2025-02-21","Sold",5,{"$f":"(G2*K2)/100","v":437500},"Investment","Kopion Healthcare Holdings, LLC","User","Medical","National","Sawhney Properties, LP","Private","Individual","Local","121 Months","Assisted Living","B",1989,1.07,46609,2,"CO, Antioch","Suburban","Contra Costa","94509-2835"]
["4650 Ranch Rd","Sachse","TX","Health Care",12080,"3 Star",6669086,552.07659999999998,"2025-01-13","Sold",7,{"$f":"(G3*K3)/100","v":466836.02},"Investment","Hussein Baghdadi Mroweh","Private","Individual","National","Fourth Time Partners","Private","Individual","National","24 Months","Assisted Living","C",2023,1.04,45302,1,"PD-19","Suburban","Collin","75048"]
["2260 E Brown Rd","Mesa","AZ","Health Care",7325,"2 Star",3450000,470.98970000000003,"2025-01-07","Sold",6.54,225630,"Investment","Shiloh Lundahl","Private","Individual","Local","Phillip V Westbrooks","Private","Individual","Local","57 Months","Assisted Living","B",1974,0.81,35284,1,"OC","Suburban","Maricopa","85213"]
["6800 Mexico Rd (Part of a 3 Property Portfolio)","Saint Peters","MO","Health Care",246351,"4 Star",88575640,359.5505,"2024-10-29","Sold",6.5,5757416.5999999996,"Investment","Inland Real Estate Group of Companies, Inc.","Private","Developer - Regional","National","Ryan Companies US, Inc. | Harrison Street | LCS","Private | Private Equity | User","Developer - National | Equity Funds | Corporation","Foreign","57 Months","Assisted Living","A",2020,9.69,422096,3,null,"Suburban","St. Charles","63376"]
["125 Oak Hill Blvd","Newnan","GA","Health Care",10500,"3 Star",3300000,314.28570000000002,"2024-10-17","Sold",7.18,236940,"Investment","Turner Residential Rentals","Private","Other - Private","National","A & H Newnan Real Estate Ventures, LLC","Private","Individual","Local","45 Months","Skilled Nursing Facility","C",2021,1.45,63162,1,"C-6","Suburban","Coweta","30265-2592"]
["521 SW 2nd Pl (Part of a 2 Property Sale)","Pompano Beach","FL","Health Care",5608,"2 Star",null,null,"2024-09-10","Sold",6.67," ","Investment","Magnus Charitable Trust","Private","Trust","National","Chaim P Moster","Private","Individual","National","23 Months","Skilled Nursing Facility","C",1971,0.29843900000000001,13000,1,"RM-30","Urban","Broward","33060"]
["25243 Fisher St","San Bernardino","CA","Health Care",3870,"3 Star",1350000,348.8372,"2024-09-04","Sold",7.75,104625,"Owner User","Joy Bells Inc","Private","Individual","Local","Berkshire Hathaway California Properties","User","Corporation","National","20+ Years","Congregate Senior Housing","C",1960,0.25703399999999998,11196,1,"MR","Suburban","San Bernardino","92404-6322"]
["14080 Hyatt Rd (Part of a 2 Property Sale)","Jacksonville","FL","Health Care",28596,"3 Star",null,null,"2024-09-03","Sold",6," ","Investment","Easterly Government Properties, Inc.","Public","Public REIT","National","US Federal Properties","Private","Developer - National","National","10 Months","Assisted Living","B",2024,6,261360,1,"PUD","Suburban","Duval","32218"]
["528 Howard St","Alhambra","CA","Health Care",2886,"2 Star",1540000,533.6105,"2024-07-31","Sold",5.52,85008,"Investment","Hyo Sook Kim","Private","Individual","Local","Ryan Wang","Private","Individual","Local","32 Months","Assisted Living","C",1938,0.16350000000000001,7122,1,"P*","Suburban","Los Angeles","91801-3302"]
["3145 Lily Trl (Part of a 2 Property Sale)","Oakland Township","MI","Health Care",200956,"5 Star",null,null,"2024-07-10","Sold",null," ","Investment","Welltower Inc.","Public","Public REIT","National","Moceri Management Co. Inc","Private","Developer - Regional","Local","66 Months","Assisted Living","A",2019,13.651584,594663,2,"BI","Suburban","Oakland","48306-3476"]
["8225 Whipps Mill Rd (Part of a 7 Property Portfolio)","Louisville","KY","Health Care",36700,"3 Star",null,null,"2024-06-05","Sold",6.5," ","Investment","Ventas, Inc.","Public","Public REIT","National","LCS","User","Corporation","National","69 Months","Assisted Living","B",2009,6.41,279220,null,"R-4","Suburban","Jefferson","40222-5482"]
["7655 Ewing Blvd (Part of a 7 Property Portfolio)","Florence","KY","Health Care",41410,"3 Star",null,null,"2024-06-05","Sold",6.5," ","Investment","Ventas, Inc.","Public","Public REIT","National","LCS","User","Corporation","National","69 Months","Assisted Living","B",null,7.5220000000000002,327658,1,null,"Suburban","Boone","41042"]
["13600 La Grange Rd (Part of a 7 Property Portfolio)","Louisville","KY","Health Care",55000,"3 Star",null,null,"2024-06-05","Sold",6.5," ","Investment","Ventas, Inc.","Public","Public REIT","National","LCS","User","Corporation","National","69 Months","Assisted Living","B",2012,7.9752999999999998,347404,null,null,"Suburban","Jefferson","40245-2940"]
["2701 Magnolia Springs Dr (Part of a 7 Property Portfolio)","Lexington","KY","Health Care",111126,"3 Star",null,null,"2024-06-05","Sold",6.5," ","Investment","Ventas, Inc.","Public","Public REIT","National","LCS","User","Corporation","National","69 Months","Assisted Living","B",2017,7.01,305356,2,"R-3","Suburban","Fayette","40511-1198"]
["14901 Carey Rd (Part of a 7 Property Portfolio)","Carmel","IN","Health Care",92650,"3 Star",null,null,"2024-06-05","Sold",6.5," ","Investment","Ventas, Inc.","Public","Public REIT","National","LCS","User","Corporation","National","69 Months","Assisted Living","B",2014,5.86,255262,null,null,"Suburban","Hamilton","46033-9081"]
["11111 Sagecrest Ln","Houston","TX","Health Care",1709,"3 Star",null,null,"2024-05-07","Sold",5.31," ","Owner User",{"$nulls":8},"20+ Years","Assisted Living",null,1966,0.16827500000000001,7330,1,null,"Suburban","Harris","77089-3905"]
["13185 Old Nashville","Smyrna","TN","Health Care",5434,"3 Star",2800000,515.27409999999998,"2024-04-12","Sold",6.53,182840,"Investment","Massie & Co., GP","Private","Developer - Regional","National","Palm Development Partners","Private","Developer - National","National","12 Months","Assisted Living","B",2023,0.89,38768,1,null,"Suburban","Rutherford","37167-6309"]
["21802 Encino Commons (Part of a 2 Property Sale)","San Antonio","TX","Health Care",111000,"4 Star",null,null,"2024-04-10","Sold",7.3," ","Investment","Ventas, Inc.","Public","Public REIT","National","Franklin Companies","Private","Developer - National","Local","87 Months","Assisted Living","A",2017,7.501322,326758,3,null,"Suburban","Bexar","78259-2794"]
["21802 Encino Commons (Part of a 2 Property Sale)","San Antonio","TX","Health Care",161631,"3 Star",null,null,"2024-04-10","Sold",7.3," ","Investment","Ventas, Inc.","Public","Public REIT","National","Franklin Companies","Private","Developer - National","Local","159 Months","Assisted Living","B",2011,7.2260999999999997,314769,3,null,"Suburban","Bexar","78259"]
["258 Walnut St","Shrewsbury","MA","Health Care",75000,"4 Star",36000000,480,"2024-01-23","Sold",8,2880000,"Investment","Ventas, Inc.","Public","Public REIT","National","LCB Senior Living | Blue Moon Capital Partners","Private | Institutional","Developer - Regional | Investment Manager","National","84 Months","Assisted Living","A",2017,5.58,243065,3,"CB","Suburban","Worcester","01545-3318"]
["1165 Mcgee Ct NE","Salem","OR","Health Care",96705,"4 Star",25575000,264.464,"2024-01-22","Sold",7.5,1918125,"Investment","Foundry Commercial","Private","Developer - National","National","Bridge Investment Group","Private Equity","Equity Funds","National","66 Months","Assisted Living","A",2016,3.7675000000000001,164112,3,"MU","Suburban","Marion","97303"]
["11705 Evening Walk Dr","Bradenton","FL","Health Care",109010,"3 Star",27500000,252.2704,"2024-01-19","Sold",8,2200000,"Investment","Chicago Pacific Founders","Private Equity","Equity Funds","National","AEW Capital Management","Institutional","Investment Manager","National","96 Months","Assisted Living","B",2016,7.0141260000000001,305535,4,"PD-MU","Suburban","Manatee","34211"]
["8160 W Coal Mine Ave","Littleton","CO","Health Care",70800,"4 Star",31500000,444.91520000000003,"2023-12-28","Sold",7.5,2362500,"Investment","Welltower Inc.","Public","Public REIT","National","United Properties Investment, LLC | Balfour Senior Living","Private","Developer - Regional | Developer - National","National","71 Months","Assisted Living","A",2018,4.4630000000000001,194408,2,"P-D","Suburban","Jefferson","80123-4431"]
["14316 Helmer Rd S (Part of a 2 Property Sale)","Battle Creek","MI","Health Care",29561,"3 Star",null,null,"2023-12-22","Sold",7," ","Investment","2600 Centre Ave Llc","Private","Individual","National","Woodland Terrace","Private","Developer - Regional","National","43 Months","Skilled Nursing Facility","B",2000,2.98,129809,1,"C","Suburban","Calhoun","49015-8631"]
["14420 Helmer Rd S (Part of a 2 Property Sale)","Battle Creek","MI","Health Care",55819,"3 Star",null,null,"2023-12-22","Sold",7," ","Investment","2600 Centre Ave Llc","Private","Individual","National","Woodland Terrace","Private","Developer - Regional","National","43 Months","Assisted Living","C",2001,15.38,669953,1,"R1B","Suburban","Calhoun","49015-8706"]
["2030 Windward Ln (Part of a 2 Property Sale)","Gainesville","GA","Health Care",22424,"3 Star",null,null,"2023-12-15","Sold",5," ","Investment","Robert A Weber Jr","Private","Individual","Local","ALG Senior","User","Medical","National","68 Months","Assisted Living","B",2018,4.43,192971,1,"OI","Suburban","Hall","30501"]
["7230 University Pky (Part of a 2 Property Sale)","Sarasota","FL","Health Care",203090,"4 Star",null,null,"2023-12-06","Sold",7.5," ","Investment","PGIM, Inc.","Institutional","Investment Manager","National","Ryan Companies US, Inc.","Private","Developer - National","National","59 Months","Assisted Living","A",2019,2.5,108900,4,null,"Suburban","Sarasota","34240"]
["525 W La Palma Ave","Anaheim","CA","Health Care",75000,"3 Star",31955000,426.06659999999999,"2023-11-14","Sold",8,2556400,"Investment","Seung Hye SEO CPA | Chin S & Hyun Lim Kim | Daneil Rhee Kim | Allen Joseph Chiou & Elaine Rhee Kim","User | Private","Corporation | Individual","National","iBorrow","Institutional","Bank","National","49 Months","Assisted Living","C",1976,1.3739669999999999,59850,2,"CG, Anaheim","Urban","Orange","92801-2432"]
["5412 Kiernan Ave","Salida","CA","Health Care",9020,"2 Star",3910000,433.48110000000003,"2023-09-08","Sold",7.72,301852,"Investment","Talwinderdeep S Kahlon & Navneet K Gill","Private","Individual","National","Jasraj Bhatia","Private","Individual","National","29 Months","Assisted Living","C",1964,0.6,26136,1,"R-3","Suburban","Stanislaus","95368-9130"]
["600 Maple Ave","Burleson","TX","Health Care",28632,"3 Star",null,null,"2023-07-31","Sold",7.6," ","Investment","CT Corporation System","User","Corporation","National","CT Corporation","Private","Other - Private","National","116 Months","Skilled Nursing Facility","C",1968,2.1800000000000002,94961,1,"COM","Suburban","Johnson","76028"]
["15430 Huebner Rd","San Antonio","TX","Health Care",86000,"4 Star",36000000,418.6046,"2023-07-13","Sold",7,2520000,"Investment","Welltower Inc.","Public","Public REIT","National","Welltower Inc. | Caddis Partners","Public | Private","Public REIT | Developer - National","National","90 Months","Assisted Living","A",2016,3.6,156816,1,"C-3","Suburban","Bexar","78248"]
["4150 Gatling Blvd (Part of a 8 Property Portfolio)","Country Club Hills","IL","Health Care",60000,"3 Star",null,null,"2023-06-30","Sold",8," ","Investment","Grand Lifestyles","Private","Developer - Regional","Local","Pathway to Living","Private","Developer - Regional","Local",null,"Assisted Living","C",null,2.4300000000000002,105851,null,null,"Suburban","Cook","60478-2024"]
["975 Martha St (Part of a 8 Property Portfolio)","Elk Grove Village","IL","Health Care",62595,"3 Star",null,null,"2023-06-30","Sold",8," ","Investment","Grand Lifestyles","Private","Developer - Regional","Local","Pathway to Living","Private","Developer - Regional","Local",null,"Assisted Living","B",null,3.2189000000000001,140215,3,null,"Suburban","Cook","60007-3414"]
["2370 N Newcastle Ave (Part of a 8 Property Portfolio)","Chicago","IL","Health Care",50000,"4 Star",null,null,"2023-06-30","Sold",8," ","Investment","Grand Lifestyles","Private","Developer - Regional","Local","Pathway to Living","Private","Developer - Regional","Local","209 Months","Assisted Living","A",2006,0.19500000000000001,8494,4,null,"Urban","Cook","60707-2955"]
["3251 E 92nd St (Part of a 8 Property Portfolio)","Chicago","IL","Health Care",65000,"3 Star",null,null,"2023-06-30","Sold",8," ","Investment","Grand Lifestyles","Private","Developer - Regional","Local","Pathway to Living","Private","Developer - Regional","Local","173 Months","Assisted Living","A",2009,7.2300000000000003E-2,3149,5,null,"Urban","Cook","60617"]
["1800 Riverwoods Dr (Part of a 8 Property Portfolio)","Melrose Park","IL","Health Care",256028,"3 Star",null,null,"2023-06-30","Sold",8," ","Investment","Grand Lifestyles","Private","Developer - Regional","Local","Pathway to Living","Private","Developer - Regional","Local",null,"Assisted Living","B",null,1.1604000000000001,50547,4,null,"Suburban","Cook","60160"]
["825 Larrabee St","West Hollywood","CA","Health Care",2500,"2 Star",2100000,840,"2023-06-13","Sold",4.3,90300,"Investment","William Katz | Michelle Kane","Private","Individual","Local","825 Larrabee LLC","Private","Individual","Local","20+ Years","Congregate Senior Housing","C",1919,0.14000000000000001,6098,1,"R4","Urban","Los Angeles","90069-4503"]
["1415 W Scott Ave (Part of a 3 Property Portfolio)","Fresno","CA","Health Care",3744,"2 Star",null,null,"2023-06-01","Sold",6," ","Investment","Rajat & Minakshi Roychoudhury","Private","Individual","National","Evergreen Residential Care Homes LLC","Private","Other - Private","Local","58 Months","Assisted Living","C",1961,0.30303000000000002,13200,1,"R1B","Suburban","Fresno","93704-1802"]
["5633 N Maroa Ave (Part of a 3 Property Portfolio)","Fresno","CA","Health Care",3069,"2 Star",null,null,"2023-06-01","Sold",6," ","Investment","Rajat & Minakshi Roychoudhury","Private","Individual","National","Evergreen Residential Care Homes LLC","Private","Other - Private","Local","58 Months","Assisted Living","C",1958,0.371,16161,1,"R1B","Suburban","Fresno","93704-2007"]
["1415 W Scott Ave (Part of a 3 Property Portfolio)","Fresno","CA","Health Care",3316,"2 Star",null,null,"2023-06-01","Sold",6," ","Investment","Rajat & Minakshi Roychoudhury","Private","Individual","National","Evergreen Residential Care Homes LLC","Private","Other - Private","Local","58 Months","Assisted Living","C",1956,0.40452199999999999,17621,1,"R1AH","Suburban","Fresno","93711"]
["115 Thayer Way","American Canyon","CA","Health Care",6035,"3 Star",1550000,256.83510000000001,"2023-04-25","Sold",6.41,99355,"Investment","Deepak Dhawan","Private","Individual","National","Gerald F Keena","Private","Individual","National","20+ Years","Assisted Living","C",1965,1.1099859999999999,48351,1,null,"Suburban","Napa","94503"]
["115 Thayer Way","Vallejo","CA","Health Care",6035,"2 Star",1550000,256.83510000000001,"2023-04-25","Sold",6.41,99355,"Investment","Como Realty","Private","Individual","National","Gantan Zenaida P","Private","Individual","National","20+ Years","Assisted Living","B",1965,1.1099859999999999,48351,1,"RR, American Canyon","Suburban","Napa","94503-1126"]
["101 Main St","Safety Harbor","FL","Health Care",31920,"3 Star",8451000,264.75560000000002,"2023-04-21","Sold",7.3,616923,"Investment","Masters Realty International","Private","Individual","National","Reit4","Private","Private REIT","Local","16 Months","Assisted Living","B",1925,1.089,47437,3,null,"Suburban","Pinellas","34695-3656"]
[{"$nulls":6},"Ave. $ per SF",{"$f":"AVERAGE(H2:H44)","v":406.0708894736843},null,null,{"$f":"MEDIAN(K2:K44)","v":7}]
[]
["2901 Jacaranda Blvd","Venice","FL","Health Care",30000,"3 Star",59999990,1999.9997000000001,null,"Active",6.67,{"$f":"(G47*K47)/100","v":4001999.3330000001},"Investment or Owner User",{"$nulls":7},"Local",null,"Congregate Senior Housing",null,2018,12.595000000000001,548638,3,"RMF3","Suburban","Sarasota","34293-6007"]
["8375 Florida Blvd (5 Properties)","Denham Springs","LA","Health Care",122796,"2 Star",57013010,464.29039999999998,null,"Active",6.79,3871183.3789999997,"Investment",{"$nulls":7},"National",{"$nulls":4},15.19,661676,1,null,"Suburban","Multiple","70726"]
["1189 W River Dr (4 Properties)","Margate","FL","Health Care",102163,null,36000000,352.37810000000002,null,"Active",5.12,1843200,"Investment",{"$nulls":7},"National",null,null,"C",null,4.4315300000000004,193037,null,null,"Suburban","Multiple","33063-3578"]
["5020 Space Center Blvd","Pasadena","TX","Health Care",39751,"3 Star",14000000,352.19240000000002,null,"Active",7.14,999600,"Investment",{"$nulls":7},"Local",null,"Skilled Nursing Facility","B",2011,3.85,167706,1,null,"Suburban","Harris","77505"]
["8510 Whitefield Ave","Savannah","GA","Health Care",25865,"3 Star",12500000,483.27859999999998,null,"Active",8,1000000,"Investment",{"$nulls":9},"Assisted Living",null,1997,2.98,129809,1,"PR2","Suburban","Chatham","31406-6137"]
["1708 NE 4th St","Boynton Beach","FL","Health Care",28290,"3 Star",10582677,374.07839999999999,null,"Active",3.44,364044.08880000003,"Investment",{"$nulls":7},"National",null,"Skilled Nursing Facility","C",1977,1.62,70567,1,"R3, Boynton Beach","Suburban","Palm Beach","33435-2501"]
["181 Clifton St","New Haven","CT","Health Care",46477,"3 Star",9999999,215.1602,null,"Active",4.8,479999.95199999993,"Investment or Owner User",{"$nulls":7},"National",null,"Skilled Nursing Facility","B",1958,1.8,78408,3,"RM1","CBD","New Haven","06513-3319"]
["110 Med Tech Pky","Johnson City","TN","Health Care",33521,"3 Star",9900000,295.33730000000003,null,"Active",8,792000,"Investment or Owner User",{"$nulls":9},"Skilled Nursing Facility",null,2003,3.7,161172,1,"B-4","Multiple","Washington","37604-4004"]
["11546 Florida Blvd","Baton Rouge","LA","Health Care",32000,"2 Star",8555990,267.37470000000002,null,"Active",6.4,547583.36,"Investment",{"$nulls":7},"National",null,"Skilled Nursing Facility",null,1950,2.4,104544,1,null,"Suburban","E Baton Rouge","70815-2405"]
["800 Fording Island Rd","Bluffton","SC","Health Care",39279,"3 Star",7200000,183.30410000000001,null,"Active",6.5,468000,"Investment or Owner User",{"$nulls":7},"Local",null,"Assisted Living","C",2000,3.8,165528,3,"C/MU","Multiple","Beaufort","29910"]
["2932 N 14th St","Phoenix","AZ","Health Care",31181,"2 Star",6265000,200.92359999999999,null,"Active",7.15,447947.5,"Investment",{"$nulls":7},"National",null,"Assisted Living","C",1964,1.5,65340,1,"R-3, M-H Phoenix","Urban","Maricopa","85014-5601"]
["624 S Atlantic Ave","Daytona Beach","FL","Health Care",18348,"2 Star",5500000,299.7602,null,"Under Contract",7.27,399850,"Investment",{"$nulls":7},"National",null,"Assisted Living","C",1946,0.8,34848,2,"7400","Suburban","Volusia","32118-4510"]
["8912 S 2700 W","West Jordan","UT","Health Care",23187,"3 Star",5000000,215.63810000000001,null,"Under Contract",8,400000,"Investment",{"$nulls":9},"Assisted Living","B",2007,1.54,67082,1,"Call for details","Suburban","Salt Lake","84088-9506"]
["4916 Mobile Hwy","Pensacola","FL","Health Care",18182,"3 Star",4500000,247.4975,null,"Active",5.47,246150,"Investment",{"$nulls":7},"National",null,"Assisted Living","C",1997,1.1000000000000001,47916,1,"C-1","Suburban","Escambia","32506-3230"]
["13233 Medical Complex Dr","Tomball","TX","Health Care",10190,"3 Star",3820000,374.87729999999999,null,"Active",5.5,210100,"Investment",{"$nulls":7},"National",null,"Assisted Living","B",2018,1,43560,1,"AG","Suburban","Harris","77375"]
["29 Rock Dr","Toccoa","GA","Health Care",16332,"2 Star",3750000,229.61060000000001,null,"Active",7.8,292500,"Investment",{"$nulls":7},"National",null,"Congregate Senior Housing","C",2002,2.9,126324,1,"BII","Multiple","Stephens","30577"]
["621 NW 76th Ave (3 Properties)","Plantation","FL","Health Care",7768,"3 Star",3500000,450.56639999999999,null,"Active",4.26,149100,"Investment",{"$nulls":7},"Local",null,"Assisted Living",null,null,0.69042099999999995,30075,1,null,"Multiple","Broward","33324-1440"]
["6710 E Fanfol Dr","Paradise Valley","AZ","Health Care",4251,"3 Star",3100000,729.24019999999996,null,"Active",4.6900000000000004,145390.00000000003,"Investment",{"$nulls":9},"Assisted Living","B",1972,0.99501799999999996,43343,1,"SFR","Suburban","Maricopa","85253-1949"]
["1890 NW 6th St","Grants Pass","OR","Health Care",3238,"3 Star",2957130,913.25819999999999,null,"Active",6.35,187777.755,"Investment",{"$nulls":9},"Skilled Nursing Facility","B",2023,0.49,21344,1,null,"Multiple","Josephine","97526-1038"]
["11720 Inglewood Ave","Hawthorne","CA","Health Care",5400,"2 Star",2400000,444.44439999999997,null,"Active",8,192000,"Investment or Owner User",{"$nulls":7},"Local",null,"Congregate Senior Housing","C",1941,0.21,9148,1,"C","Urban","Los Angeles","90250"]
["1637-1639 W 228th St","Torrance","CA","Health Care",3191,"2 Star",2200000,689.43899999999996,null,"Active",7.05,155100,"Investment",{"$nulls":7},"National",null,"Assisted Living","C",1961,0.33064700000000002,14403,1,"CM-1VL","Urban","Los Angeles","90501-5109"]
["1920 E Osborne Ave","Tampa","FL","Health Care",4593,"3 Star",1800000,391.90069999999997,null,"Active",7.36,132480,"Investment",{"$nulls":7},"Local",null,"Assisted Living",null,1944,0.53060099999999999,23113,1,"RS-50","Suburban","Hillsborough","33610-6051"]
["621 NW 76th Ave","Plantation","FL","Health Care",3212,"3 Star",1400000,435.8655,null,"Active",3.49,48860,"Investment",{"$nulls":7},"Local",null,"Assisted Living","C",1977,0.28699999999999998,12502,1,"RS-3K S","Suburban","Broward","33324-1440"]
["5426 18th St W","Bradenton","FL","Health Care",6539,"3 Star",1395000,213.33539999999999,null,"Active",7.89,110065.5,"Investment or Owner User",{"$nulls":9},"Assisted Living","C",1980,0.44,19166,1,"RDD-6","Suburban","Manatee","34207-3305"]
["1974 E Clear Lake Dr","Fort Mohave","AZ","Health Care",3619,null,1200000,331.58330000000001,null,"Active",8,96000,"Investment or Owner User",{"$nulls":9},"Assisted Living",null,2002,null,null,1,"SD","Multiple","Mohave","86426-6742"]
["8167 Eisenhower Pky","Lizella","GA","Health Care",8693,"3 Star",1200000,138.0421,null,"Active",7,84000,"Investment or Owner User",{"$nulls":7},"Local",null,"Assisted Living","B",1950,4.57,199069,1,"Commercial","Suburban","Bibb","31052"]
["4200 NE 19th Ave","Pompano Beach","FL","Health Care",2163,"3 Star",1100000,508.55290000000002,null,"Active",2.54,27940,"Investment or Owner User",{"$nulls":9},"Assisted Living","B",1966,0.16,6970,1,"Assisted Living","Urban","Broward","33064-6019"]
["11937 NW 31st St","Coral Springs","FL","Health Care",2393,"3 Star",1000000,417.88549999999998,null,"Active",7.23,72300,"Investment",{"$nulls":9},"Assisted Living","C",1976,0.243421,10603,1,"Assisted Living","Suburban","Broward","33065-3329"]
["3552 SE 65th Ave","Portland","OR","Health Care",3280,"2 Star",975000,297.2561,null,"Active",6.9,67275,"Investment",{"$nulls":7},"Local",null,"Skilled Nursing Facility","C",1911,0.18,7841,2,"R2, Portland","Suburban","Multnomah","97206-2746"]
["5297 Jones Rd","Saint Cloud","FL","Health Care",3150,"3 Star",970000,307.93650000000002,null,"Active",6,58200,"Investment or Owner User",{"$nulls":9},"Assisted Living","B",2024,0.67,29185,1,"PD","Suburban","Osceola","34771-9505"]
["112 S. Main st","Harlem","MT","Health Care",16414,"3 Star",850000,51.7851,null,"Active",6.15,52275,"Investment",{"$nulls":9},"Congregate Senior Housing","B",1998,0.6,26136,1,"5","Multiple","Blaine","59526-8021"]
["6133 Petty St","Covington","GA","Health Care",1755,"2 Star",670000,381.76639999999998,null,"Active",6,40200,"Investment or Owner User",{"$nulls":7},"Local",null,"Assisted Living","C",1956,0.16,6970,1,"NM","Suburban","Newton","30014-3888"]
["501 6th St","Taft","CA","Health Care",1660,"3 Star",250000,150.60239999999999,null,"Under Contract",7.11,17775,"Investment",{"$nulls":9},"Congregate Senior Housing",null,1968,0.14000000000000001,6098,1,"GC","Suburban","Kern","93268-2704"]
[{"$nulls":6},"Ave. $ per SF",{"$f":"AVERAGE(H47:H79)","v":406.33822121212131},null,null,{"$f":"MEDIAN(K47:K79)","v":6.79}]
["Subject Property:"]
["1141 Corinth Road","Newnan","GA","Health Care",5574,"3 Star",2100000,376.75,null,"Active",9.2799999999999994,195075,"Investment or Owner User ",{"$nulls":7},"Local",null,"Assisted Living","C",1996,5.1144459099999997,93654,1,"RC","Suburban","Whitfield",30273]
[]
["Yellow is Regional"]
["Green is Georgia"]
["Disclaimer: While the information is deemed reliable, no warranty is expressed or implied. Any information important to you or another party should be independently confirmed \nwithin an applicable due diligence period. "]
[]
["Reference:"]
["© 2025 CoStar Realty Information Inc."]
["Date Run: 3/27/2025"]